bitfinex-derivatives/quotes_BNBF0:USTF0_20250101
["timestamp","ask_amount","ask_price","bid_price","bid_amount"]
[1735752903162,0.26099231,705.83,704.91,1.06257049]
[1735752903363,0.26099231,705.82,704.91,1.06257049]
[1735752903663,0.26099231,705.81,704.91,1.06257049]
[1735752903865,0.26099231,705.8,704.9,1.06257049]
[1735752904064,2.54336074,705.85,704.9,1.06257049]
[1735752904369,0.26098014,705.84,704.9,1.06257049]
[1735752905167,0.26098014,705.84,704.94,1.06257049]
[1735752906367,0.26098014,705.84,704.97,1.06257049]
[1735752907469,0.26098014,705.84,704.98,1.06257049]
[1735752908169,0.26098014,705.84,704.99,1.06257049]
[1735752908369,0.26097331,705.83,704.99,1.06257049]
[1735752908569,0.26097331,705.82,704.99,1.06257049]
[1735752908769,0.26097331,705.81,704.99,1.06257049]
[1735752909069,0.26098379,705.8,704.99,1.06257049]
[1735752909269,0.26098379,705.79,704.99,1.06257049]
[1735752909469,1.48032088,705.85,704.81,1.06257049]
[1735752909470,1.48032088,705.85,705.0,1.06257049]
[1735752909672,0.26097955,705.84,705.0,1.06257049]
[1735752910471,1.32401941,705.84,704.99,1.06257049]
[1735752910664,0.26097955,705.83,704.99,1.06257049]
[1735752911070,0.26098437,705.82,704.99,1.06257049]
[1735752911266,0.26098437,705.81,704.99,1.06257049]
[1735752911566,0.26098437,705.8,704.98,1.06257049]
[1735752911771,0.26098437,705.79,704.98,1.06257049]
[1735752912066,0.26098437,705.78,704.98,1.06257049]
[1735752912271,0.26098437,705.77,704.98,1.06257049]
[1735752912467,0.26098909,705.76,704.99,1.06257049]
[1735752912772,1.06303986,705.82,704.99,1.06257049]
[1735752912966,0.26098949,705.81,704.99,1.06257049]
[1735752913568,1.06303986,705.82,704.99,1.06257049]
[1735752913773,1.06303986,705.8,704.98,1.06257049]
[1735752913971,0.26098552,705.79,704.98,1.06257049]
[1735752914671,1.06303986,705.8,704.98,1.06257049]
[1735752915173,0.26097753,705.79,704.98,1.06257049]
[1735752915474,0.26097753,705.79,704.46,2.16941475]
[1735752915475,1.06303986,705.83,705.01,1.06257049]
[1735752915673,0.2609772,705.82,705.01,1.06257049]
[1735752916270,1.06303986,705.83,705.02,1.06257049]
[1735752916271,0.26097359,705.81,705.02,1.06257049]
[1735752916470,0.26097359,705.8,705.02,1.06257049]
[1735752916671,1.06303986,705.83,705.02,1.06257049]
[1735752916870,0.26097574,705.82,705.02,1.06257049]
[1735752917976,1.06303986,705.83,705.02,1.06257049]
[1735752918174,0.2609746,705.82,705.02,1.06257049]
[1735752918573,0.2609746,705.82,705.03,1.06257049]
[1735752919877,0.2609746,705.81,705.03,1.06257049]
[1735752920074,0.2609746,705.8,705.03,1.06257049]
[1735752920277,1.06303986,705.84,705.03,1.06257049]
[1735752920676,1.06303986,705.82,705.03,1.06257049]
[1735752922082,1.06303986,705.85,705.02,1.06257049]
[1735752922980,1.4802789,705.86,705.01,1.06257049]
[1735752923981,2.54331876,705.86,705.01,1.06257049]
[1735752924983,1.4802789,705.86,705.02,1.06257049]
[1735752927186,1.06303986,705.87,705.02,1.06257049]
[1735752927784,1.06303986,705.89,704.99,1.06257049]
[1735752928985,1.06303986,705.89,705.0,1.06257049]
[1735752930185,1.06303986,705.92,704.98,1.06257049]
[1735752931085,1.06303986,705.91,704.99,1.06257049]
[1735752932386,1.06303986,705.91,704.46,0.72414015]
[1735752932387,1.48018446,705.93,704.93,1.06257049]
[1735752933592,1.48018446,705.93,704.92,1.06257049]
[1735752936383,1.48018446,705.93,704.94,1.06257049]
[1735752937787,1.48018446,705.93,704.99,1.06257049]
[1735752938590,1.48018446,705.93,704.98,1.06257049]
[1735752939095,0.28326605,706.05,704.98,1.06257049]
[1735752939489,1.48011625,706.01,704.98,1.06257049]
[1735752941194,0.26092871,706.0,704.98,1.06257049]
[1735752942094,0.26092871,706.0,705.06,1.06257049]
[1735752942491,1.48011625,706.01,705.06,1.06257049]
[1735752943897,1.48011625,706.01,704.48,0.72414015]
[1735752943898,0.26092687,706.0,705.05,1.06257049]
[1735752944292,1.48011625,706.01,705.05,1.06257049]
[1735752945300,1.48011625,706.01,705.04,1.06257049]
[1735752947596,1.48011625,706.01,705.03,1.06257049]
[1735752948900,1.48011625,706.01,704.99,1.06257049]
[1735752950099,1.48011625,706.01,705.0,1.06257049]
[1735752951308,1.48011625,706.01,704.99,1.06257049]
[1735752952108,1.48011625,706.01,704.46,0.72414015]
[1735752952109,1.48011625,706.01,704.98,1.06257049]
[1735752952909,1.48011625,706.01,704.96,1.06257049]
[1735752954010,1.48011625,706.01,704.95,1.06257049]
[1735752956809,1.48011625,706.01,704.96,1.06257049]
[1735752958109,1.48011625,706.01,704.99,1.06257049]
[1735752960609,0.28326605,706.05,704.99,1.06257049]
[1735752962804,0.28326605,706.05,705.14,1.06257049]
[1735752963507,0.28326605,706.05,704.91,1.06257049]
[1735752963508,0.28326605,706.05,705.13,1.06257049]
[1735752964712,0.28326605,706.05,705.2,1.06257049]
[1735752965814,0.28326605,706.05,705.18,1.06257049]
[1735752968314,0.28326605,706.05,705.17,1.06257049]
[1735752970516,5.08499933,713.55,704.69,0.72414015]
[1735752970517,1.47949748,706.33,705.19,1.06257049]
[1735752970915,0.26080753,706.32,705.19,1.06257049]
[1735752971413,1.47949748,706.33,705.19,1.06257049]
[1735752971609,0.26081384,706.32,705.19,1.06257049]
[1735752972014,0.26081384,706.32,705.22,1.06257049]
[1735752972214,1.47949748,706.33,705.22,1.06257049]
[1735752972410,0.26081359,706.32,705.22,1.06257049]
[1735752972709,1.47949748,706.33,705.22,1.06257049]
[1735752973517,1.47949748,706.33,705.19,1.06257049]
[1735752974617,1.47949748,706.33,705.15,1.06257049]
[1735752975514,1.47949748,706.33,704.89,0.72414015]
[1735752975515,1.47949748,706.33,705.13,1.06257049]
[1735752977118,1.47949748,706.33,705.14,1.06257049]
[1735752978115,1.47949748,706.33,705.1,1.06257049]
[1735752980517,1.47949748,706.33,705.13,1.06257049]
[1735752981520,1.47949748,706.33,705.14,1.06257049]
[1735752982422,1.47949748,706.33,704.63,1.27508458]
[1735752982423,1.47949748,706.33,705.08,1.06257049]
[1735752983925,1.47949748,706.33,704.49,1.27508458]
[1735752983926,1.47949748,706.33,705.12,1.06257049]
[1735752984926,1.47949748,706.33,704.56,1.27508458]
[1735752984927,1.47949748,706.33,705.11,1.06257049]
[1735752985520,1.06303986,706.7,705.11,1.06257049]
[1735752985720,1.47941886,706.38,705.11,1.06257049]
[1735752986123,0.28300952,706.69,705.11,1.06257049]
[1735752986327,0.28300952,706.69,704.54,1.27508458]
[1735752986328,1.47939266,706.38,705.12,1.06257049]
[1735752986528,1.34604938,706.69,705.12,1.06257049]
[1735752986728,0.26079261,706.68,705.12,1.06257049]
[1735752987328,0.26079261,706.68,704.42,2.16941475]
[1735752987329,0.26079111,706.67,705.14,1.06257049]
[1735752987527,0.26079111,706.66,705.14,1.06257049]
[1735752987726,0.26079111,706.65,705.14,1.06257049]
[1735752987929,0.26079111,706.64,705.14,1.06257049]
[1735752988129,0.26078545,706.63,705.14,1.06257049]
[1735752988424,0.26078545,706.62,705.14,1.06257049]
[1735752988625,0.26078545,706.61,705.14,1.06257049]
[1735752988829,0.26078545,706.6,705.14,1.06257049]
[1735752989029,0.26078545,706.59,705.14,1.06257049]
[1735752989330,0.26078545,706.58,705.14,1.06257049]
[1735752989629,0.26078545,706.57,705.19,1.06257049]
[1735752989832,0.26078545,706.56,705.19,1.06257049]
[1735752990033,0.26079091,706.55,705.19,1.06257049]
[1735752990229,0.26079091,706.54,705.19,1.06257049]
[1735752990432,0.26079091,706.53,705.19,1.06257049]
[1735752990733,0.26079091,706.52,705.19,1.06257049]
[1735752990933,0.26079091,706.51,705.16,1.06257049]
[1735752991127,0.26079091,706.5,705.16,1.06257049]
[1735752991327,0.26079091,706.49,705.16,1.06257049]
[1735752991633,0.26079091,706.48,705.16,1.06257049]
[1735752991830,0.26079091,706.66,705.16,1.06257049]
[1735752992031,0.26079091,706.65,705.16,1.06257049]
[1735752992330,0.26079091,706.64,705.16,1.06257049]
[1735752992531,0.26079091,706.63,705.16,1.06257049]
[1735752992731,0.26079091,706.62,705.16,1.06257049]
[1735752992933,0.26079091,706.61,705.16,1.06257049]
[1735752993129,0.26079091,706.6,705.16,1.06257049]
[1735752993335,0.26079091,706.59,705.16,1.06257049]
[1735752993532,0.26079091,706.59,704.57,1.27508458]
[1735752993533,1.32383077,706.58,705.24,1.06257049]
[1735752993728,0.26079091,706.57,705.24,1.06257049]
[1735752994136,1.06303986,706.55,705.27,1.06257049]
[1735752994336,0.26079091,706.54,705.27,1.06257049]
[1735752995140,1.06303986,706.55,705.27,1.06257049]
[1735752995340,0.26080576,706.54,705.27,1.06257049]
[1735752995541,0.26080576,706.54,705.17,1.06257049]
[1735752995732,0.26080576,706.53,705.17,1.06257049]
[1735752995940,1.06303986,706.61,705.17,1.06257049]
[1735752996141,0.26080355,706.6,705.17,1.06257049]
[1735752996335,0.26080355,706.6,705.18,1.06257049]
[1735752997343,0.26080355,706.6,705.19,1.06257049]
[1735752997538,1.06303986,706.62,705.19,1.06257049]
[1735752997539,0.26080355,706.59,705.19,1.06257049]
[1735752997742,0.26080355,706.58,705.19,1.06257049]
[1735752997936,1.47923544,706.58,705.19,1.06257049]
[1735752998543,1.47923544,706.58,705.18,1.06257049]
[1735752999444,0.26078791,706.57,705.18,1.06257049]
[1735752999643,0.26078051,706.56,705.18,1.06257049]
[1735752999845,1.47923544,706.58,705.18,1.06257049]
[1735753000039,1.47923544,706.58,704.45,1.55899401]
[1735753000040,0.26078002,706.57,705.23,1.06257049]
[1735753000539,0.26078353,706.56,705.23,1.06257049]
[1735753000739,0.26078353,706.55,705.23,1.06257049]
[1735753000941,1.47923544,706.58,705.23,1.06257049]
[1735753001139,0.2607786,706.57,705.23,1.06257049]
[1735753001341,0.2607786,706.57,704.51,1.27508458]
[1735753001342,0.2607786,706.57,705.31,1.06257049]
[1735753002245,1.06303986,706.58,705.31,1.06257049]
[1735753002545,1.06303986,706.58,704.52,2.89121933]
[1735753002546,0.26077256,706.57,705.33,1.06257049]
[1735753003143,1.06303986,706.58,705.33,1.06257049]
[1735753003347,0.26076992,706.57,705.33,1.06257049]
[1735753003748,0.26076992,706.57,705.38,1.06257049]
[1735753003947,0.26077194,706.56,705.38,1.06257049]
[1735753004247,1.06303986,706.59,705.38,1.06257049]
[1735753004449,0.26077194,706.58,705.38,1.06257049]
[1735753004751,1.3238118,706.58,705.39,1.06257049]
[1735753005050,0.26077194,706.57,705.39,1.06257049]
[1735753005846,1.3238118,706.57,705.39,1.06257049]
[1735753006150,0.26077194,706.56,705.39,1.06257049]
[1735753007352,1.47910446,706.55,705.39,1.06257049]
[1735753007554,0.26077194,706.54,705.39,1.06257049]
[1735753008155,1.06303986,706.53,705.44,1.06257049]
[1735753008355,0.26077194,706.52,705.44,1.06257049]
[1735753008554,0.26077144,706.51,705.44,1.06257049]
[1735753008754,1.06303986,706.53,705.44,1.06257049]
[1735753008954,0.26077144,706.52,705.44,1.06257049]
[1735753009356,0.26077144,706.52,705.43,1.06257049]
[1735753010550,1.47910446,706.55,705.48,1.06257049]
[1735753010551,1.06303986,706.49,705.48,1.06257049]
[1735753011555,1.47910446,706.55,705.32,1.06257049]
[1735753012452,0.26080844,706.54,705.32,1.06257049]
[1735753012657,0.26080844,706.54,705.31,1.06257049]
[1735753013657,0.26080844,706.54,705.24,1.06257049]
[1735753013658,1.06303986,706.5,705.24,1.06257049]
[1735753013857,0.26081501,706.49,705.24,1.06257049]
[1735753015164,0.26081501,706.49,704.58,1.27508458]
[1735753015165,1.06303986,706.48,705.23,1.06257049]
[1735753015361,0.26081501,706.47,705.23,1.06257049]
[1735753016061,1.06303986,706.3,705.28,1.06257049]
[1735753016261,0.26081501,706.29,705.28,1.06257049]
[1735753016461,0.26084281,706.28,705.28,1.06257049]
[1735753016662,0.26084281,706.27,705.28,1.06257049]
[1735753016863,0.26084281,706.26,705.28,1.06257049]
[1735753017066,0.26084281,706.25,705.28,1.06257049]
[1735753017266,0.60660337,706.59,705.27,1.06257049]
[1735753017267,0.26084281,706.24,705.27,1.06257049]
[1735753017565,0.26084281,706.23,705.27,1.06257049]
[1735753017762,0.26084281,706.22,705.27,1.06257049]
[1735753017967,0.26084281,706.21,705.27,1.06257049]
[1735753018269,0.26084281,706.2,705.25,1.06257049]
[1735753018467,0.26084281,706.19,705.25,1.06257049]
[1735753018666,0.26084281,706.18,705.25,1.06257049]
[1735753018862,0.26084281,706.17,705.25,1.06257049]
[1735753019166,0.26084281,706.16,705.25,1.06257049]
[1735753019368,1.47947127,706.26,705.25,1.06257049]
[1735753019668,1.47947127,706.26,705.18,1.06257049]
[1735753019869,0.26086088,706.25,705.18,1.06257049]
[1735753021168,0.26087138,706.24,705.17,1.06257049]
[1735753021469,0.26087138,706.23,705.17,1.06257049]
[1735753021767,0.26087138,706.22,705.17,1.06257049]
[1735753021969,0.26087138,706.21,705.09,1.06257049]
[1735753022162,0.26087138,706.2,705.09,1.06257049]
[1735753022365,0.26087138,706.19,705.09,1.06257049]
[1735753022561,0.26087138,706.18,705.09,1.06257049]
[1735753022869,0.26087138,706.17,705.09,1.06257049]
[1735753023067,0.26087138,706.16,705.07,1.06257049]
[1735753023369,0.26087138,706.15,705.07,1.06257049]
[1735753023565,0.26088315,706.14,705.07,1.06257049]
[1735753023765,1.47947127,706.26,705.07,1.06257049]
[1735753023968,0.26087941,706.25,705.07,1.06257049]
[1735753024164,0.26087941,706.25,705.04,1.06257049]
[1735753025372,0.26087941,706.25,704.95,1.06257049]
[1735753025573,1.47947127,706.26,704.95,1.06257049]
[1735753025775,0.26090295,706.25,704.95,1.06257049]
[1735753026170,0.26090279,706.24,704.95,1.06257049]
[1735753026370,0.26090279,706.23,704.95,1.06257049]
[1735753026572,0.26090279,706.22,704.95,1.06257049]
[1735753026872,0.26090279,706.22,704.73,1.06257049]
[1735753026873,0.26091477,706.21,704.92,1.06257049]
[1735753027073,0.26091477,706.2,704.92,1.06257049]
[1735753027274,0.26091477,706.19,704.92,1.06257049]
[1735753027473,0.26091477,706.18,704.92,1.06257049]
[1735753027673,0.26091477,706.17,704.92,1.06257049]
[1735753027973,0.26091477,706.16,704.92,1.06257049]
[1735753028177,0.26091477,706.16,704.85,1.06257049]
[1735753028779,0.26092445,706.15,704.85,1.06257049]
[1735753028974,0.26092445,706.14,704.85,1.06257049]
[1735753029175,0.26092445,706.13,704.85,1.06257049]
[1735753029379,0.26092445,706.12,704.85,1.06257049]
[1735753029574,1.47997462,706.17,704.81,1.06257049]
[1735753029575,0.26092445,706.11,704.81,1.06257049]
[1735753029875,0.26092445,706.1,704.81,1.06257049]
[1735753030175,0.26092445,706.09,704.81,1.06257049]
[1735753030369,0.26092445,706.08,704.81,1.06257049]
[1735753030575,0.26092445,706.07,704.81,1.06257049]
[1735753030771,0.26092445,706.06,704.78,1.06257049]
[1735753030977,0.26092445,706.05,704.78,1.06257049]
[1735753031175,0.26092445,706.04,704.78,1.06257049]
[1735753031377,0.26092551,706.03,704.78,1.06257049]
[1735753031578,0.26092551,706.02,704.78,1.06257049]
[1735753031875,0.26092551,706.01,704.75,1.06257049]
[1735753032079,1.47997462,706.17,704.75,1.06257049]
[1735753032375,0.26092481,706.16,704.75,1.06257049]
[1735753033378,0.26092481,706.16,704.73,1.06257049]
[1735753033775,0.28322594,706.15,704.73,1.06257049]
[1735753033974,0.26092503,706.14,704.73,1.06257049]
[1735753034479,0.26092503,706.14,704.72,1.06257049]
[1735753035671,0.26092503,706.14,704.76,1.06257049]
[1735753036772,0.26091695,706.13,704.76,1.06257049]
[1735753036977,0.26091695,706.12,704.8,1.06257049]
[1735753037176,0.26091695,706.11,704.8,1.06257049]
[1735753037372,0.26091695,706.1,704.8,1.06257049]
[1735753037579,0.26091695,706.09,704.8,1.06257049]
[1735753037778,0.26091695,706.08,704.8,1.06257049]
[1735753037974,0.26091695,706.07,704.81,1.06257049]
[1735753038180,0.26091695,706.06,704.81,1.06257049]
[1735753038979,0.26091695,706.06,704.83,1.06257049]
[1735753039777,1.48010576,706.07,704.83,1.06257049]
[1735753040176,1.48010576,706.07,704.86,1.06257049]
[1735753041081,1.48010576,706.07,704.54,1.06257049]
[1735753043693,1.48010576,706.07,704.55,1.06257049]
[1735753044584,1.48010576,706.07,704.54,1.06257049]
[1735753045987,1.48010576,706.07,704.55,1.06257049]
[1735753047088,1.48010576,706.07,704.75,1.06257049]
[1735753047988,1.48010576,706.07,704.77,1.06257049]
[1735753049489,1.48010576,706.07,704.85,1.06257049]
[1735753050890,1.48010576,706.07,704.46,0.72153701]
[1735753050891,1.48010576,706.07,704.88,1.06257049]
[1735753052089,1.48010576,706.07,704.9,1.06257049]
[1735753053189,1.48010576,706.07,704.97,1.06257049]
[1735753054092,0.26091811,706.06,704.97,1.06257049]
[1735753054390,0.26091811,706.06,704.73,1.06257049]
[1735753054391,0.26091811,706.06,705.01,1.06257049]
[1735753055391,1.48010576,706.07,705.06,1.06257049]
[1735753055594,0.26091768,706.06,705.06,1.06257049]
[1735753056289,0.26091768,706.06,705.08,1.06257049]
[1735753058087,0.26093912,706.05,705.08,1.06257049]
[1735753058294,0.26093912,706.04,705.08,1.06257049]
[1735753058493,1.06303986,706.02,705.04,1.06257049]
[1735753058890,0.26093902,706.01,705.04,1.06257049]
[1735753059586,0.26093902,706.01,704.46,0.72153701]
[1735753059587,1.32397888,706.01,705.06,1.06257049]
[1735753059789,0.26093902,706.0,705.06,1.06257049]
[1735753060191,1.06303986,706.01,705.06,1.06257049]
[1735753060392,1.48012675,705.99,705.06,1.06257049]
[1735753060793,1.48012675,705.99,705.05,1.06257049]
[1735753062689,0.26094455,705.98,705.05,1.06257049]
[1735753062893,0.26094455,705.98,705.04,1.06257049]
[1735753063391,2.54316661,705.99,705.04,1.06257049]
[1735753063597,0.2609433,705.98,705.04,1.06257049]
[1735753063996,2.54316661,705.99,705.04,1.06257049]
[1735753064195,0.26093992,705.98,705.04,1.06257049]
[1735753064495,1.32397978,705.98,705.04,1.06257049]
[1735753064796,0.26093992,705.97,705.04,1.06257049]
[1735753065091,1.06303986,705.98,705.04,1.06257049]
[1735753065292,0.26094403,705.97,705.04,1.06257049]
[1735753065497,1.32398389,705.97,705.07,1.06257049]
[1735753065691,0.26094403,705.96,705.07,1.06257049]
[1735753066599,1.32398389,705.96,705.06,1.06257049]
[1735753066798,0.26094403,705.95,705.06,1.06257049]
[1735753067497,1.32398389,705.95,705.07,1.06257049]
[1735753067692,1.06303986,705.95,705.07,1.06257049]
[1735753068093,0.26093957,705.94,705.07,1.06257049]
[1735753068900,1.06303986,705.97,705.09,1.06257049]
[1735753069098,0.26093922,705.96,705.09,1.06257049]
[1735753069700,1.06303986,705.93,705.11,1.06257049]
[1735753070795,1.06303986,705.97,705.06,1.06257049]
[1735753072000,2.54316661,705.99,705.04,1.06257049]
[1735753072602,0.26093876,705.98,705.04,1.06257049]
[1735753074105,0.26093876,705.98,705.06,1.06257049]
[1735753074902,2.54316661,705.99,705.06,1.06257049]
[1735753075101,0.26093828,705.98,705.06,1.06257049]
[1735753075301,1.32397814,705.98,705.06,1.06257049]
[1735753075497,1.06303986,705.98,705.06,1.06257049]
[1735753075700,0.26094151,705.97,705.06,1.06257049]
[1735753076399,1.32398137,705.97,705.05,1.06257049]
[1735753076595,1.06303986,705.97,705.05,1.06257049]
[1735753079209,1.06303986,705.98,705.06,1.06257049]
[1735753079699,0.26093831,705.97,705.06,1.06257049]
[1735753080304,0.26093831,705.97,704.46,0.72153701]
[1735753080305,1.06303986,705.95,705.1,1.06257049]
[1735753080505,0.2609387,705.94,705.1,1.06257049]
[1735753081299,1.06303986,705.92,705.12,1.06257049]
[1735753081506,0.26093778,705.91,705.12,1.06257049]
[1735753081906,1.48014248,705.9,705.12,1.06257049]
[1735753082107,0.26094202,705.89,705.12,1.06257049]
[1735753083808,0.26094202,705.89,705.11,1.06257049]
[1735753084606,1.48014248,705.9,705.11,1.06257049]
[1735753085910,1.48014248,705.9,704.87,1.06257049]
[1735753086911,1.48014248,705.9,704.83,1.06257049]
[1735753088609,1.48014248,705.9,704.84,1.06257049]
[1735753088812,0.26100008,705.89,704.84,1.06257049]
[1735753089211,1.48014248,705.9,704.84,1.06257049]
[1735753089515,0.26100506,705.89,704.84,1.06257049]
[1735753089715,1.32404492,705.89,704.82,1.06257049]
[1735753089911,1.06303986,705.89,704.82,1.06257049]
[1735753090211,0.2610127,705.88,704.82,1.06257049]
[1735753091315,0.2610127,705.88,704.46,1.7841075]
[1735753091316,1.32405256,705.88,704.77,1.06257049]
[1735753091509,0.2610127,705.87,704.77,1.06257049]
[1735753092015,0.26101495,705.86,704.77,1.06257049]
[1735753092215,0.26101495,705.85,704.77,1.06257049]
[1735753092515,0.26101495,705.84,704.73,1.06257049]
[1735753092817,1.48014248,705.9,704.73,1.06257049]
[1735753093117,0.261014,705.89,704.73,1.06257049]
[1735753093618,0.261014,705.89,704.45,0.28390943]
[1735753093619,0.261014,705.89,704.71,1.06257049]
[1735753095216,0.261014,705.89,704.7,1.06257049]
[1735753096517,0.261014,705.89,704.45,0.28390943]
[1735753096518,0.261014,705.89,704.69,1.06257049]
[1735753097218,1.48014248,705.9,704.69,1.06257049]
[1735753097921,1.48014248,705.9,704.64,1.06257049]
[1735753099020,1.48014248,705.9,704.55,1.06257049]
[1735753100323,1.48014248,705.9,704.56,1.06257049]
[1735753102621,1.48014248,705.9,704.78,1.06257049]
[1735753104228,1.48014248,705.9,704.79,1.06257049]
[1735753105226,1.48014248,705.9,704.8,1.06257049]
[1735753106432,1.48014248,705.9,704.77,1.06257049]
[1735753107631,1.48014248,705.9,704.75,1.06257049]
[1735753108428,1.48014248,705.9,704.45,0.28390943]
[1735753108429,1.48014248,705.9,704.77,1.06257049]
[1735753109732,1.48014248,705.9,704.81,1.06257049]
[1735753111732,1.48014248,705.9,704.82,1.06257049]
[1735753112632,1.48014248,705.9,704.75,1.06257049]
[1735753114233,1.48014248,705.9,704.76,1.06257049]
[1735753115332,1.48014248,705.9,704.79,1.06257049]
[1735753116429,1.48014248,705.9,704.84,1.06257049]
[1735753117534,0.26097144,705.89,704.84,1.06257049]
[1735753118527,1.48014248,705.9,704.84,1.06257049]
[1735753118733,0.26098237,705.89,704.84,1.06257049]
[1735753118932,0.26098237,705.89,704.88,1.06257049]
[1735753121025,0.26098237,705.89,704.46,0.7226417]
[1735753121026,0.26098237,705.89,704.9,1.06257049]
[1735753121232,1.48014248,705.9,704.9,1.06257049]
[1735753121431,0.26097639,705.89,704.9,1.06257049]
[1735753122036,0.26097373,705.88,704.91,1.06257049]
[1735753122237,0.26097373,705.87,704.91,1.06257049]
[1735753122535,0.26097373,705.86,704.91,1.06257049]
[1735753122732,0.26097373,705.85,704.91,1.06257049]
[1735753122930,1.48014248,705.9,704.91,1.06257049]
[1735753123129,0.26096912,705.89,704.91,1.06257049]
[1735753123340,0.26096912,705.89,704.95,1.06257049]
[1735753124039,0.26096906,705.88,704.95,1.06257049]
[1735753124340,0.26096906,705.87,704.95,1.06257049]
[1735753124539,0.26096906,705.86,704.95,1.06257049]
[1735753124737,0.26096906,705.85,704.95,1.06257049]
[1735753124937,1.48014248,705.9,704.95,1.06257049]
[1735753125139,0.2609637,705.89,704.94,1.06257049]
[1735753126141,0.2609637,705.89,704.95,1.06257049]
[1735753126840,0.26096466,705.88,704.95,1.06257049]
[1735753127038,0.26096466,705.87,704.96,1.06257049]
[1735753127340,0.26096466,705.86,704.96,1.06257049]
[1735753127540,0.26096466,705.85,704.96,1.06257049]
[1735753127735,1.48014248,705.9,704.96,1.06257049]
[1735753127940,0.26096431,705.89,704.96,1.06257049]
[1735753128240,0.26096431,705.89,704.97,1.06257049]
[1735753129134,0.26096431,705.89,704.96,1.06257049]
[1735753129334,0.26096315,705.88,704.96,1.06257049]
[1735753129539,0.26096315,705.87,704.96,1.06257049]
[1735753129740,0.26096315,705.86,704.96,1.06257049]
[1735753130036,1.48014248,705.9,704.96,1.06257049]
[1735753130037,0.26096284,705.85,704.96,1.06257049]
[1735753130339,1.48014248,705.9,704.46,0.7226417]
[1735753130340,1.48014248,705.9,705.0,1.06257049]
[1735753130535,0.26096476,705.89,705.0,1.06257049]
[1735753131037,0.26096476,705.89,704.99,1.06257049]
[1735753131943,0.26096476,705.89,705.01,1.06257049]
[1735753133243,0.26096476,705.89,705.03,1.06257049]
[1735753134242,1.06303986,705.88,705.05,1.06257049]
[1735753134436,0.26096476,705.87,705.05,1.06257049]
[1735753135944,0.26096476,705.87,705.07,1.06257049]
[1735753136144,0.26096476,705.86,705.07,1.06257049]
[1735753136446,2.54318234,705.9,705.07,1.06257049]
[1735753136746,0.26095002,705.89,705.07,1.06257049]
[1735753137142,0.26095002,705.89,705.09,1.06257049]
[1735753137647,1.06303986,705.9,705.09,1.06257049]
[1735753138749,1.06303986,705.94,705.11,1.06257049]
[1735753138950,0.26093759,705.93,705.11,1.06257049]
[1735753139345,1.06303986,705.94,705.11,1.06257049]
[1735753139749,1.06303986,705.96,705.11,1.06257049]
[1735753140855,1.48002183,706.04,704.67,1.27508458]
[1735753140856,1.06303986,706.03,705.12,1.06257049]
[1735753141050,0.2609161,706.02,705.12,1.06257049]
[1735753141746,1.06303986,706.03,705.12,1.06257049]
[1735753141952,0.2609169,706.02,705.12,1.06257049]
[1735753142152,0.2609169,706.02,705.14,1.06257049]
[1735753143756,0.2609169,706.02,705.11,1.06257049]
[1735753143957,0.2609169,706.01,705.11,1.06257049]
[1735753144155,0.2609169,706.0,705.11,1.06257049]
[1735753144359,0.2609169,705.99,705.11,1.06257049]
[1735753144657,1.48002183,706.04,705.11,1.06257049]
[1735753144955,1.48002183,706.04,704.92,1.06257049]
[1735753144956,0.26090956,706.03,705.1,1.06257049]
[1735753145755,0.26090956,706.03,705.09,1.06257049]
[1735753146758,0.26090956,706.03,705.07,1.06257049]
[1735753147260,0.26091791,706.02,705.07,1.06257049]
[1735753147458,0.26091791,706.01,705.07,1.06257049]
[1735753147657,0.26091791,706.0,705.07,1.06257049]
[1735753147861,0.26091791,705.99,705.07,1.06257049]
[1735753148061,0.26091791,705.98,705.07,1.06257049]
[1735753148261,0.26091791,705.97,705.07,1.06257049]
[1735753148560,0.26091791,705.96,705.07,1.06257049]
[1735753148761,1.48002183,706.04,705.07,1.06257049]
[1735753148962,0.26091275,706.03,705.07,1.06257049]
[1735753149360,0.26091275,706.03,705.06,1.06257049]
[1735753150464,0.26091275,706.03,705.07,1.06257049]
[1735753151265,0.26091275,706.03,705.06,1.06257049]
[1735753152365,0.26091275,706.03,705.07,1.06257049]
[1735753152564,0.26091165,706.02,705.07,1.06257049]
[1735753152764,1.48002183,706.04,705.07,1.06257049]
[1735753153863,1.48002183,706.04,705.05,1.06257049]
[1735753155269,1.48002183,706.04,704.56,1.27508458]
[1735753155270,1.48002183,706.04,705.02,1.06257049]
[1735753156165,1.48002183,706.04,705.01,1.06257049]
[1735753158172,1.48002183,706.04,705.03,1.06257049]
[1735753159271,1.48002183,706.04,705.04,1.06257049]
[1735753160669,1.48002183,706.04,705.03,1.06257049]
[1735753163969,1.48002183,706.04,705.09,1.06257049]
[1735753165071,1.48002183,706.04,705.08,1.06257049]
[1735753166070,1.48002183,706.04,704.57,1.27508458]
[1735753166071,1.48002183,706.04,705.11,1.06257049]
[1735753168075,1.48002183,706.04,705.09,1.06257049]
[1735753169274,1.48002183,706.04,704.64,0.7226417]
[1735753169275,1.48002183,706.04,704.82,1.06257049]
[1735753170377,1.48002183,706.04,704.84,1.06257049]
[1735753171675,1.48002183,706.04,704.89,1.06257049]
[1735753172875,1.48002183,706.04,704.91,1.06257049]
[1735753173878,1.48002183,706.04,704.89,1.06257049]